fUST/lending_fUST_20251018
["ID","MTS","AMOUNT","RATE_DAILY","PERIOD"]
[391708027,1760737848820,-185.246876,0.00027932,30]
[391708028,1760737848829,-185.246876,0.00027932,30]
[391708029,1760737848838,-185.246876,0.00027932,30]
[391708030,1760737848848,-185.246876,0.00027932,30]
[391708031,1760737848857,-185.246876,0.00027932,30]
[391708032,1760737848867,-185.246876,0.00027932,30]
[391708033,1760737848878,-152.138916,0.00027932,30]
[391708034,1760737848887,-151.0,0.00027932,30]
[391708035,1760737848897,-151.0,0.00027932,30]
[391708036,1760737848906,-151.0,0.00027932,30]
[391708037,1760737848915,-151.0,0.00027932,30]
[391708038,1760737848925,-151.0,0.00027932,30]
[391708039,1760737848934,-151.0,0.00027932,30]
[391708040,1760737848944,-151.0,0.00027932,30]
[391708041,1760737848954,-151.0,0.00027932,30]
[391708042,1760737848964,-168.976431,0.00027932,30]
[391708043,1760737848973,-168.976431,0.00027932,30]
[391708044,1760737848983,-168.976431,0.00027932,30]
[391708045,1760737848992,-168.976431,0.00027932,30]
[391708046,1760737849002,-168.976431,0.00027932,30]
[391708047,1760737849011,-168.976431,0.00027932,30]
[391708048,1760737849021,-168.976431,0.00027932,30]
[391708049,1760737849030,-151.0,0.00027932,30]
[391708050,1760737849040,-168.976431,0.00027932,30]
[391708051,1760737849050,-151.0,0.00027932,30]
[391708052,1760737849059,-151.0,0.00027932,30]
[391708053,1760737849069,-151.0,0.00027932,30]
[391708054,1760737849078,-151.0,0.00027932,30]
[391708055,1760737849087,-151.0,0.00027932,30]
[391708056,1760737849096,-151.0,0.00027932,30]
[391708057,1760737849106,-151.0,0.00027932,30]
[391708058,1760737849115,-151.0,0.00027932,30]
[391708059,1760737849125,-151.0,0.00027932,30]
[391708060,1760737849134,-281.540579,0.00027932,30]
[391708061,1760737849143,-151.0,0.00027932,2]
[391708062,1760737849153,-151.0,0.00027932,2]
[391708063,1760737849175,-151.0,0.00027932,30]
[391708064,1760737849186,-151.0,0.00027932,30]
[391708065,1760737849196,-151.0,0.00027932,30]
[391708066,1760737849207,-151.0,0.00027932,30]
[391708067,1760737849217,-151.0,0.00027932,30]
[391708068,1760737849226,-151.0,0.00027932,30]
[391708069,1760737849236,-151.0,0.00027932,30]
[391708070,1760737849246,-163.12784728,0.00027932,30]
[391708071,1760737849255,-151.0,0.00027932,30]
[391708072,1760737849266,-151.0,0.00027932,30]
[391708073,1760737849276,-151.0,0.00027932,30]
[391708074,1760737849286,-151.0,0.00027932,30]
[391708075,1760737849296,-552.0,0.0002797,2]
[391708076,1760737849306,-500.0,0.0002797,2]
[391708077,1760737849316,-873.0,0.0002797,2]
[391708078,1760737849325,-500.0,0.0002797,2]
[391708079,1760737849335,-500.0,0.0002797,2]
[391708080,1760737849344,-151.0,0.0002797,2]
[391708081,1760737849353,-500.0,0.00027973,5]
[391708082,1760737849362,-500.0,0.00027973,5]
[391708083,1760737849372,-500.0,0.00027973,5]
[391708084,1760737849381,-501.77395195,0.00027973,5]
[391708085,1760737849391,-500.0,0.00027973,5]
[391708086,1760737849400,-500.0,0.00027973,5]
[391708087,1760737849410,-500.0,0.00027973,5]
[391708088,1760737849419,-304.15645967,0.00027973,5]
[391708089,1760737849428,-500.0,0.00027973,5]
[391708090,1760737849437,-588.44976397,0.00027973,5]
[391708091,1760737849447,-500.0,0.00027973,5]
[391708092,1760737849456,-502.67628198,0.00027973,5]
[391708093,1760737849465,-637.27187622,0.00027973,2]
[391708094,1760737849474,-500.0,0.00027973,5]
[391708095,1760737849483,-502.5569066,0.00027973,5]
[391708096,1760737849492,-500.0,0.00027973,5]
[391708097,1760737849502,-500.0,0.00027973,5]
[391708098,1760737849511,-500.0,0.00027973,5]
[391708099,1760737849520,-500.0,0.00027973,5]
[391708100,1760737849530,-500.0,0.00027973,5]
[391708101,1760737849544,-500.0,0.00027973,5]
[391708102,1760737849553,-500.0,0.00027973,5]
[391708103,1760737849563,-416.1102459,0.00027973,5]
[391708104,1760737849572,-500.0,0.00027973,5]
[391708105,1760737849581,-342.28698336,0.00027973,5]
[391708106,1760737849591,-500.0,0.00027973,5]
[391708107,1760737849600,-500.63111784,0.00027973,5]
[391708108,1760737849610,-500.0,0.00027973,5]
[391708109,1760737849619,-500.0,0.00027973,5]
[391708110,1760737849628,-500.0,0.00027973,5]
[391708111,1760737849637,-204.11052898,0.00027973,5]
[391708112,1760737849646,-500.0,0.00027973,5]
[391708113,1760737849656,-500.0,0.00027973,5]
[391708114,1760737849665,-470.61613362,0.00027973,5]
[391708115,1760737849674,-500.0,0.00027973,5]
[391708116,1760737849685,-500.0,0.00027973,5]
[391708117,1760737849695,-500.0,0.00027973,5]
[391708118,1760737849704,-500.0,0.00027973,5]
[391708119,1760737849713,-609.34623017,0.00027973,5]
[391708120,1760737849722,-283.53120276,0.00027973,5]
[391708121,1760737849731,-500.0,0.00027973,5]
[391708122,1760737849741,-500.0,0.00027973,5]
[391708123,1760737849750,-500.0,0.00027973,5]
[391708124,1760737849759,-500.0,0.00027973,3]
[391708125,1760737849768,-500.0,0.00027973,5]
[391708126,1760737849778,-500.0,0.00027973,5]
[391708127,1760737849787,-500.0,0.00027973,5]
[391708128,1760737849796,-500.0,0.00027973,5]
[391708129,1760737849806,-500.0,0.00027973,5]
[391708130,1760737849815,-508.3448074,0.00027973,5]
[391708131,1760737849824,-500.0,0.00027973,5]
[391708132,1760737849833,-500.0,0.00027973,5]
[391708133,1760737849843,-229.80515195,0.00027973,5]
[391708134,1760737849966,-500.0,0.00027973,5]
[391708135,1760737849976,-500.0,0.00027973,5]
[391708136,1760737849986,-500.0,0.00027973,5]
[391708137,1760737849995,-208.16613429,0.00027973,5]
[391708138,1760737850005,-500.0,0.00027973,5]
[391708139,1760737850015,-376.52789931,0.00027973,5]
[391708140,1760737850024,-1273.09166221,0.00027973,2]
[391708141,1760737850034,-151.0,0.00027973,30]
[391708142,1760737850043,-151.0,0.00027973,30]
[391708143,1760737850052,-151.0,0.00027973,30]
[391708144,1760737850062,-168.976431,0.00027973,30]
[391708145,1760737850072,-168.976431,0.00027973,30]
[391708146,1760737850087,-168.976431,0.00027973,30]
[391708147,1760737850096,-168.976431,0.00027973,30]
[391708148,1760737850106,-151.0,0.00027973,30]
[391708149,1760737850115,-151.0,0.00027973,30]
[391708150,1760737850124,-151.0,0.00027973,30]
[391708151,1760737850134,-151.0,0.00027973,30]
[391708152,1760737850143,-160.0,0.00027974,2]
[391708153,1760737850152,-668.0,0.00027988,2]
[391708154,1760737850162,-151.0,0.0002799,30]
[391708155,1760737850171,-288.200192,0.0002799,30]
[391708156,1760737850180,-151.0,0.0002799,30]
[391708157,1760737850190,-160.0,0.0002799,30]
[391708158,1760737850199,-151.0,0.0002799,30]
[391708159,1760737850209,-151.0,0.0002799,2]
[391708160,1760737850218,-151.0,0.0002799,30]
[391708161,1760737850227,-151.0,0.0002799,30]
[391708162,1760737850236,-151.0,0.0002799,30]
[391708163,1760737850246,-500.0,0.0002799,30]
[391708164,1760737850255,-151.0,0.0002799,30]
[391708165,1760737850265,-151.0,0.0002799,30]
[391708166,1760737850274,-500.0,0.0002799,30]
[391708167,1760737850283,-151.0,0.0002799,30]
[391708168,1760737850292,-500.0,0.0002799,30]
[391708169,1760737850302,-500.0,0.0002799,30]
[391708170,1760737850311,-500.0,0.0002799,30]
[391708171,1760737850320,-500.0,0.0002799,30]
[391708172,1760737850330,-436.85462114,0.0002799,30]
[391708173,1760737850339,-151.0,0.0002799,30]
[391708174,1760737850348,-151.0,0.0002799,30]
[391708175,1760737850357,-185.246876,0.0002799,30]
[391708176,1760737850366,-185.246876,0.0002799,30]
[391708177,1760737850376,-185.246876,0.0002799,30]
[391708178,1760737850385,-185.246876,0.0002799,30]
[391708179,1760737850394,-185.246876,0.0002799,30]
[391708180,1760737850403,-185.246876,0.0002799,30]
[391708181,1760737850413,-185.246876,0.0002799,30]
[391708182,1760737850422,-185.246881,0.0002799,30]
[391708183,1760737850432,-151.0,0.0002799,30]
[391708184,1760737850441,-151.0,0.0002799,30]
[391708185,1760737850450,-151.0,0.0002799,30]
[391708186,1760737850459,-168.976431,0.0002799,30]
[391708187,1760737850468,-168.976431,0.0002799,30]
[391708188,1760737850477,-168.976431,0.0002799,30]
[391708189,1760737850487,-168.97643579,0.0002799,30]
[391708190,1760737850496,-298.091965,0.0002799,30]
[391708191,1760737850505,-151.0,0.0002799,30]
[391708192,1760737850515,-151.0,0.0002799,30]
[391708193,1760737850524,-1952.15,0.00028,2]
[391708194,1760737850533,-151.0,0.00028,11]
[391708195,1760737850546,-151.0,0.00028,14]
[391708196,1760737850555,-151.0,0.00028,13]
[391708197,1760737850566,-151.0,0.00028,19]
[391708198,1760737850575,-151.0,0.00028,15]
[391708199,1760737850584,-151.0,0.00028,15]
[391708200,1760737850593,-151.0,0.00028,10]
[391708201,1760737850603,-151.0,0.00028,11]
[391708202,1760737850612,-151.0,0.00028,10]
[391708203,1760737850621,-151.0,0.00028,15]
[391708204,1760737850630,-151.0,0.00028,13]
[391708205,1760737850639,-151.0,0.00028,18]
[391708206,1760737850649,-151.0,0.00028,19]
[391708207,1760737850658,-151.0,0.00028,17]
[391708208,1760737850667,-151.0,0.00028,16]
[391708209,1760737850676,-5104.92568205,0.00028,5]
[391708210,1760737850686,-300.0,0.0002801,5]
[391708211,1760737850695,-151.0,0.00028011,30]
[391708212,1760737850704,-151.0,0.00028011,30]
[391708213,1760737850714,-301.99999981,0.00028011,30]
[391708214,1760737850723,-198.082719,0.00028011,2]
[391708215,1760737850732,-151.0,0.00028011,30]
[391708216,1760737850741,-151.0,0.00028011,30]
[391708217,1760737850750,-151.0,0.00028011,30]
[391708218,1760737850760,-151.0,0.00028011,30]
[391708219,1760737850769,-151.0,0.00028011,30]
[391708220,1760737850778,-644.3090721,0.00028021,30]
[391708221,1760737850788,-392.4362857,0.00028021,30]
[391708222,1760737850797,-392.4362857,0.00028021,30]
[391708223,1760737850806,-1250.8707171,0.00028021,2]
[391708224,1760737850815,-90133.9535304,0.00028021,2]
[391708225,1760737850824,-9320.6280331,0.00028021,2]
[391708226,1760737850833,-414.9325933,0.00028021,2]
[391708227,1760737850843,-151.0,0.00028021,30]
[391708228,1760737850852,-151.592443,0.00028021,30]
[391708229,1760737850862,-2135.75848166,0.00028022,3]
[391708230,1760737850871,-4714.47978594,0.00028022,3]
[391708231,1760737850880,-552.0,0.00028024,2]
[391708232,1760737850889,-500.0,0.00028024,2]
[391708233,1760737850898,-873.0,0.00028024,2]
[391708234,1760737850907,-500.0,0.00028024,2]
[391708235,1760737850917,-500.0,0.00028024,2]
[391708236,1760737850926,-151.0,0.00028024,2]
[391708237,1760737850936,-410.83,0.0002803,7]
[391708238,1760737850945,-585.22,0.0002803,5]
[391708239,1760737850955,-500.0,0.0002803,5]
[391708240,1760737850964,-500.0,0.0002803,5]
[391708241,1760737850973,-337.71091664,0.0002803,5]
[391708242,1760737850983,-585.22,0.00028031,5]
[391708243,1760737850992,-585.22,0.00028031,5]
[391708244,1760737851001,-585.22,0.00028031,5]
[391708245,1760737851010,-585.22,0.00028031,5]
[391708246,1760737851020,-585.22,0.00028031,5]
[391708247,1760737851030,-585.22,0.00028031,5]
[391708248,1760737851040,-585.22,0.00028031,5]
[391708249,1760737851049,-585.22,0.00028031,5]
[391708250,1760737851058,-585.22,0.00028031,5]
[391708251,1760737851067,-585.22,0.00028031,5]
[391708252,1760737851076,-585.22,0.00028031,5]
[391708253,1760737851086,-585.22,0.00028031,5]
[391708254,1760737851096,-585.22,0.00028031,5]
[391708255,1760737851110,-585.22,0.00028031,5]
[391708256,1760737851120,-585.22,0.00028031,5]
[391708257,1760737851130,-585.22,0.00028031,5]
[391708258,1760737851139,-585.22,0.00028031,5]
[391708259,1760737851148,-585.22,0.00028031,5]
[391708260,1760737851158,-500.0,0.00028031,2]
[391708261,1760737851167,-387.50758309,0.00028031,5]
[391708262,1760737851177,-235.56894141,0.00028031,2]
[391708263,1760737851186,-430.09546461,0.00028031,2]
[391708264,1760737851195,-349.47055531,0.00028031,2]
[391708265,1760737851204,-399.39492035,0.00028031,2]
[391708266,1760737851214,-687.93170003,0.00028031,2]
[391708267,1760737851223,-295.28150975,0.00028031,2]
[391708268,1760737851232,-484.86796657,0.00028031,2]
[391708269,1760737851242,-1781.4,0.00028031,2]
[391708270,1760737851251,-1781.4,0.00028031,2]
[391708271,1760737851260,-1781.4,0.00028031,2]
[391708272,1760737851269,-1781.4,0.00028031,2]
[391708273,1760737851279,-1781.4,0.00028031,2]
[391708274,1760737851288,-1781.4,0.00028031,2]
[391708275,1760737851297,-1781.4,0.00028031,2]
[391708276,1760737851307,-1781.4,0.00028031,2]
[391708277,1760737851316,-1781.4,0.00028031,2]
[391708278,1760737851328,-1781.4,0.00028031,2]
[391708279,1760737851337,-1781.4,0.00028031,2]
[391708280,1760737851347,-1781.4,0.00028031,2]
[391708281,1760737851356,-1781.4,0.00028031,2]
[391708282,1760737851366,-1781.4,0.00028031,2]
[391708283,1760737851375,-1781.4,0.00028031,2]
[391708284,1760737851384,-1781.4,0.00028031,2]
[391708285,1760737851394,-1781.4,0.00028031,2]
[391708286,1760737851404,-1781.4,0.00028031,2]
[391708287,1760737851413,-1781.4,0.00028031,2]
[391708288,1760737851423,-1238.27706005,0.00028031,2]
[391708289,1760737851432,-872.76233982,0.00028031,2]
[391708290,1760737851442,-1551.57749302,0.00028031,2]
[391708291,1760737851452,-152.0,0.00028032,7]
[391708292,1760737851461,-166.0,0.00028032,7]
[391708293,1760737851470,-152.0,0.00028032,7]
[391708294,1760737851480,-172.0,0.00028032,7]
[391708295,1760737851490,-175.5372348,0.00028032,7]
[391708296,1760737851499,-152.0,0.00028032,7]
[391708297,1760737851509,-175.0,0.00028032,7]
[391708298,1760737851518,-152.0,0.00028032,7]
[391708299,1760737851527,-152.0,0.00028032,7]
[391708300,1760737851537,-152.0,0.00028032,7]
[391708301,1760737851549,-152.0,0.00028032,7]
[391708302,1760737851558,-152.0,0.00028032,7]
[391708303,1760737851567,-152.0,0.00028032,7]
[391708304,1760737851577,-152.0,0.00028032,7]
[391708305,1760737851588,-152.0,0.00028032,7]
[391708306,1760737851598,-152.0,0.00028032,7]
[391708307,1760737851609,-152.0,0.00028032,7]
[391708308,1760737851619,-152.0,0.00028032,7]
[391708309,1760737851628,-152.0,0.00028032,7]
[391708310,1760737851638,-152.0,0.00028032,7]
[391708311,1760737851647,-330.0,0.00028032,7]
[391708312,1760737851657,-152.0,0.00028032,7]
[391708313,1760737851667,-330.0,0.00028032,7]
[391708314,1760737851677,-152.0,0.00028032,7]
[391708315,1760737851686,-330.0,0.00028032,7]
[391708316,1760737851696,-152.0,0.00028032,7]
[391708317,1760737851706,-330.0,0.00028032,7]
[391708318,1760737851715,-152.0,0.00028032,7]
[391708319,1760737851725,-330.0,0.00028032,7]
[391708320,1760737851734,-215.33827402,0.00028032,7]
[391708321,1760737851743,-330.0,0.00028032,7]
[391708322,1760737851753,-322.0,0.00028032,7]
[391708323,1760737851763,-330.0,0.00028032,7]
[391708324,1760737851772,-336.93058499,0.00028032,7]
[391708325,1760737851782,-330.0,0.00028032,7]
[391708326,1760737851791,-172.0,0.00028032,7]
[391708327,1760737851801,-174.84101495,0.00028032,7]
[391708328,1760737851810,-500.0,0.00028045,30]
[391708329,1760737851820,-151.0,0.00028045,30]
[391708330,1760737851829,-151.0,0.00028045,30]
[391708331,1760737851839,-500.0,0.00028045,30]
[391708332,1760737851849,-151.0,0.00028045,30]
[391708333,1760737851859,-500.0,0.00028045,30]
[391708334,1760737851868,-151.0,0.00028045,30]
[391708335,1760737851878,-151.0,0.00028045,30]
[391708336,1760737851887,-2424.33983285,0.00028046,2]
[391708337,1760737851897,-500.0,0.00028073,5]
[391708338,1760737851906,-500.0,0.00028073,5]
[391708339,1760737851916,-500.46856268,0.00028073,5]
[391708340,1760737851926,-493.21107956,0.00028073,5]
[391708341,1760737851935,-500.0,0.00028073,5]
[391708342,1760737851944,-500.0,0.00028073,5]
[391708343,1760737851954,-500.0,0.00028073,5]
[391708344,1760737851964,-235.16621169,0.00028073,5]
[391708345,1760737851973,-500.0,0.00028073,5]
[391708346,1760737851983,-500.0,0.00028073,5]
[391708347,1760737851992,-500.0,0.00028073,5]
[391708348,1760737852001,-500.0,0.00028073,5]
[391708349,1760737852011,-500.0,0.00028073,5]
[391708350,1760737852020,-500.0,0.00028073,4]
[391708351,1760737852029,-500.0,0.00028073,5]
[391708352,1760737852039,-500.0,0.00028073,5]
[391708353,1760737852048,-500.0,0.00028073,5]
[391708354,1760737852057,-500.0,0.00028073,5]
[391708355,1760737852067,-500.0,0.00028073,2]
[391708356,1760737852076,-500.0,0.00028073,5]
[391708357,1760737852085,-500.0,0.00028073,5]
[391708358,1760737852204,-500.0,0.00028073,5]
[391708359,1760737852214,-500.0,0.00028073,5]
[391708360,1760737852223,-500.0,0.00028073,5]
[391708361,1760737852233,-500.0,0.00028073,5]
[391708362,1760737852243,-552.0,0.00028079,2]
[391708363,1760737852253,-206.4645969,0.00028079,2]
[391708364,1760737852262,-873.0,0.00028079,2]
[391708365,1760737852271,-500.0,0.00028079,2]
[391708366,1760737852280,-500.0,0.00028079,2]
[391708367,1760737852290,-151.0,0.00028079,2]
[391708368,1760737852299,-1000.0,0.00028093,2]
[391708369,1760737852308,-151.0,0.00028093,2]
[391708370,1760737852317,-1000.0,0.00028093,2]
[391708371,1760737852327,-151.0,0.00028093,2]
[391708372,1760737852336,-151.0,0.00028093,2]
[391708373,1760737852345,-151.0,0.00028093,2]
[391708374,1760737852355,-1000.0,0.00028093,2]
[391708375,1760737852364,-157.17818344,0.00028093,2]
[391708376,1760737852373,-169.63157692,0.00028093,2]
[391708377,1760737852383,-741.8533594,0.00028093,2]
[391708378,1760737852392,-1000.0,0.00028093,2]
[391708379,1760737852401,-1000.0,0.00028093,2]
[391708380,1760737852410,-1000.0,0.00028093,2]
[391708381,1760737852419,-1000.0,0.00028093,2]
[391708382,1760737852428,-1000.0,0.00028093,2]
[391708383,1760737852437,-1000.0,0.00028093,2]
[391708384,1760737852446,-1000.0,0.00028093,2]
[391708385,1760737852455,-1000.0,0.00028093,2]
[391708386,1760737852465,-166.0,0.00028093,2]
[391708387,1760737852474,-20746.26328358,0.00028093,2]
[391708388,1760737852484,-1000.0,0.00028093,2]
[391708389,1760737852493,-1000.0,0.00028093,2]
[391708390,1760737852502,-250.0,0.00028093,2]
[391708391,1760737852511,-181.08010149,0.00028093,2]
[391708392,1760737852521,-635.83717446,0.00028093,2]
[391708393,1760737852531,-250.0,0.00028093,2]
[391708394,1760737852543,-250.0,0.00028093,2]
[391708395,1760737852552,-272.73517006,0.00028093,2]
[391708396,1760737852562,-250.0,0.00028093,2]
[391708397,1760737852571,-250.0,0.00028093,2]
[391708398,1760737852580,-250.0,0.00028093,2]
[391708399,1760737852590,-250.0,0.00028093,2]
[391708400,1760737852599,-250.0,0.00028093,2]
[391708401,1760737852609,-250.0,0.00028093,2]
[391708402,1760737852618,-250.0,0.00028093,2]
[391708403,1760737852627,-250.0,0.00028093,2]
[391708404,1760737852637,-250.0,0.00028093,2]
[391708405,1760737852646,-250.0,0.00028093,2]
[391708406,1760737852661,-2408.98013261,0.00028093,2]
[391708407,1760737852670,-250.0,0.00028093,2]
[391708408,1760737852679,-250.0,0.00028093,2]
[391708409,1760737852688,-177.48697365,0.00028093,2]
[391708410,1760737852698,-250.0,0.00028093,2]
[391708411,1760737852707,-250.0,0.00028093,2]
[391708412,1760737852717,-250.0,0.00028093,2]
[391708413,1760737852726,-250.0,0.00028093,2]
[391708414,1760737852736,-250.0,0.00028093,2]
[391708415,1760737852745,-250.0,0.00028093,2]
[391708416,1760737852755,-250.0,0.00028093,2]
[391708417,1760737852764,-250.0,0.00028093,2]
[391708418,1760737852773,-280.52537335,0.00028093,2]
[391708419,1760737852782,-500.0,0.00028094,2]
[391708420,1760737852792,-453.0,0.000281,30]
[391708421,1760737852801,-151.0,0.000281,30]
[391708422,1760737852810,-245.0,0.000281,30]
[391708423,1760737852819,-500.0,0.000281,30]
[391708424,1760737852828,-154.30840794,0.000281,30]
[391708425,1760737852837,-500.0,0.000281,30]
[391708426,1760737852847,-151.0,0.000281,30]
[391708427,1760737852856,-151.0,0.000281,30]
[391708428,1760737852866,-19541.8,0.000281,7]
[391708429,1760737852875,-2190.85,0.000281,2]
[391708430,1760737852884,-160.0,0.000281,7]
[391708431,1760737852894,-440.463888,0.000281,30]
[391708432,1760737852903,-440.463888,0.000281,2]
[391708433,1760737852912,-277.750317,0.000281,30]
[391708434,1760737852921,-277.750317,0.000281,2]
[391708435,1760737852930,-402.69031254,0.000281,7]
[391708436,1760737852940,-585.22,0.00028111,5]
[391708437,1760737852949,-585.22,0.00028111,5]
[391708438,1760737852958,-585.22,0.00028111,5]
[391708439,1760737852967,-585.22,0.00028111,5]
[391708440,1760737852976,-585.34789315,0.00028111,5]
[391708441,1760737852986,-1781.4,0.00028111,2]
[391708442,1760737852995,-1781.4,0.00028111,2]
[391708443,1760737853004,-1781.4,0.00028111,2]
[391708444,1760737853014,-1781.4,0.00028111,2]
[391708445,1760737853023,-1781.62877421,0.00028111,2]
[391708446,1760737853033,-2201.38144009,0.00028126,2]
[391708447,1760737853042,-150.0,0.00028131,2]
[391708448,1760737853051,-150.0,0.00028131,2]
[391708449,1760737853060,-300.0,0.00028131,2]
[391708450,1760737853070,-450.0,0.00028131,2]
[391708451,1760737853080,-600.0,0.00028131,2]
[391708452,1760737853089,-750.0,0.00028131,2]
[391708453,1760737853098,-799.47321387,0.00028131,2]
[391708454,1760737853108,-552.0,0.00028134,2]
[391708455,1760737853118,-873.0,0.00028134,2]
[391708456,1760737853127,-251.89237297,0.00028134,2]
[391708457,1760737853137,-459.64415798,0.00028134,2]
[391708458,1760737853147,-245.0,0.00028134,2]
[391708459,1760737853156,-668.0,0.00028146,7]
[391708460,1760737853166,-381.49505783,0.00028147,5]
[391708461,1760737853175,-151.0,0.00028154,30]
[391708462,1760737853185,-500.0,0.00028154,30]
[391708463,1760737853194,-395.43302852,0.00028154,30]
[391708464,1760737853204,-151.0,0.00028154,30]
[391708465,1760737853214,-151.0,0.00028154,30]
[391708466,1760737853225,-11936.59479906,0.00028166,2]
[391708467,1760737853234,-552.0,0.00028189,2]
[391708468,1760737853244,-873.0,0.00028189,2]
[391708469,1760737853253,-262.5,0.00028205,2]
[391708470,1760737853263,-151.0,0.00028209,30]
[391708471,1760737853273,-500.0,0.00028209,30]
[391708472,1760737853283,-151.0,0.00028209,30]
[391708473,1760737853292,-151.0,0.00028209,30]
[391708474,1760737853302,-168.0,0.0002824,2]
[391708475,1760737853312,-552.0,0.00028244,2]
[391708476,1760737853322,-873.0,0.00028244,2]
[391708477,1760737853331,-245.0,0.00028264,30]
[391708478,1760737853340,-500.0,0.00028264,30]
[391708479,1760737853350,-245.0,0.00028264,30]
[391708480,1760737853359,-245.0,0.00028264,30]
[391708481,1760737853368,-552.0,0.00028298,2]
[391708482,1760737853378,-873.0,0.00028298,2]
[391708483,1760737853388,-410.83,0.00028304,8]
[391708484,1760737853397,-163.65673127,0.00028315,7]
[391708485,1760737853407,-157.96213312,0.00028319,30]
[391708486,1760737853417,-3491.0493593,0.00028348,2]
[391708487,1760737853427,-552.0,0.00028353,2]
[391708488,1760737853438,-910.0,0.00028353,2]
[391708489,1760737853448,-873.0,0.00028353,2]
[391708490,1760737853458,-500.0,0.00028368,2]
[391708491,1760737853466,-1294.39610733,0.00028396,2]
[391708492,1760737853475,-552.0,0.00028408,2]
[391708493,1760737853485,-910.0,0.00028408,2]
[391708494,1760737853495,-873.0,0.00028408,2]
[391708495,1760737853504,-658.76874796,0.00028421,5]
[391708496,1760737853514,-1000.0,0.00028421,5]
[391708497,1760737853524,-1000.0,0.00028421,2]
[391708498,1760737853534,-1000.0,0.00028421,2]
[391708499,1760737853547,-1000.0,0.00028421,5]
[391708500,1760737853556,-972.74885932,0.00028421,5]
[391708501,1760737853566,-501.64796023,0.00028421,5]
[391708502,1760737853575,-1000.0,0.00028421,5]
[391708503,1760737853586,-1000.0,0.00028421,5]
[391708504,1760737853595,-552.0,0.00028463,2]
[391708505,1760737853606,-910.0,0.00028463,2]
[391708506,1760737853615,-873.0,0.00028463,2]
[391708507,1760737853625,-52305.23168264,0.000285,7]
[391708508,1760737853635,-552.0,0.00028518,2]
[391708509,1760737853644,-910.0,0.00028518,2]
[391708510,1760737853654,-873.0,0.00028518,2]
[391708511,1760737853663,-1000.0,0.00028521,5]
[391708512,1760737853673,-1000.0,0.00028521,5]
[391708513,1760737853682,-1000.0,0.00028521,5]
[391708514,1760737853691,-1000.0,0.00028521,5]
[391708515,1760737853700,-1000.0,0.00028521,5]
[391708516,1760737853710,-848.92582538,0.00028521,5]
[391708517,1760737853719,-1000.0,0.00028521,5]
[391708518,1760737853728,-1000.0,0.00028521,5]
[391708519,1760737853737,-1000.0,0.00028521,5]
[391708520,1760737853747,-1000.0,0.00028521,5]
[391708521,1760737853756,-1000.0,0.00028521,5]
[391708522,1760737853766,-1000.0,0.00028521,5]
[391708523,1760737853776,-1000.0,0.00028521,5]
[391708524,1760737853786,-1000.0,0.00028521,5]
[391708525,1760737853795,-1000.0,0.00028521,5]
[391708526,1760737853804,-1000.0,0.00028521,5]